[Event "*** Titled Tuesday Blitz"]
[Site "Chess.com"]
[Date "2021.02.02"]
[Round "1"]
[White "ural58"]
[Black "dropstoneDP"]
[Result "0-1"]
[WhiteElo "2470"]
[BlackElo "2957"]
[TimeControl "180+1"]
[EndTime "10:07:53 PST"]
[Termination "dropstoneDP won on time"]

1. e4 {[%clk 0:02:52.7]} 1... e6 {[%clk 0:02:53.1]} 2. Qe2 {[%clk 0:02:51.5]}
2... g6 {[%clk 0:02:50.3]} 3. h4 {[%clk 0:02:50.1]} 3... d5 {[%clk 0:02:44.6]}
4. exd5 {[%clk 0:02:49.6]} 4... Nf6 {[%clk 0:02:44.6]} 5. Nc3 {[%clk 0:02:42.2]}
5... Bg7 {[%clk 0:02:34.5]} 6. d4 {[%clk 0:02:39]} 6... O-O {[%clk 0:02:33.6]}
7. Bg5 {[%clk 0:02:38.9]} 7... exd5 {[%clk 0:02:28.8]} 8. O-O-O {[%clk
0:02:38.6]} 8... h6 {[%clk 0:02:04.8]} 9. Bf4 {[%clk 0:02:35.5]} 9... Re8 {[%clk
0:02:02]} 10. Qd2 {[%clk 0:02:33.9]} 10... h5 {[%clk 0:01:24.3]} 11. f3 {[%clk
0:02:31.5]} 11... a6 {[%clk 0:01:08.8]} 12. Bd3 {[%clk 0:02:28.2]} 12... Nc6
{[%clk 0:01:06.8]} 13. Nge2 {[%clk 0:02:25.8]} 13... Nb4 {[%clk 0:01:06.4]} 14.
Ng3 {[%clk 0:02:22.3]} 14... c5 {[%clk 0:01:02.8]} 15. dxc5 {[%clk 0:02:11.1]}
15... d4 {[%clk 0:01:01]} 16. Bc4 {[%clk 0:02:03.9]} 16... Qa5 {[%clk
0:00:38.8]} 17. Qxd4 {[%clk 0:01:31.6]} 17... Nfd5 {[%clk 0:00:23.1]} 18. Nxd5
{[%clk 0:01:13.1]} 18... Bxd4 {[%clk 0:00:23.2]} 19. Rxd4 {[%clk 0:01:13.7]}
19... Nxd5 {[%clk 0:00:23.5]} 20. Bxd5 {[%clk 0:01:12.8]} 20... Be6 {[%clk
0:00:10.5]} 21. Bxe6 {[%clk 0:01:10.3]} 21... Rxe6 {[%clk 0:00:10.3]} 22. a3
{[%clk 0:00:29.2]} 22... Qxc5 {[%clk 0:00:10]} 23. Rhd1 {[%clk 0:00:29.7]} 23...
Re1 {[%clk 0:00:08]} 24. Rd2 {[%clk 0:00:11.6]} 24... Rxd1+ {[%clk 0:00:07.8]}
25. Rxd1 {[%clk 0:00:11.9]} 25... Re8 {[%clk 0:00:08.6]} 26. Ne4 {[%clk
0:00:10.7]} 26... Qf5 {[%clk 0:00:08.8]} 27. Bd2 {[%clk 0:00:10]} 27... Rxe4
{[%clk 0:00:04.4]} 28. fxe4 {[%clk 0:00:09.9]} 28... Qxe4 {[%clk 0:00:05.3]} 29.
g3 {[%clk 0:00:09.9]} 29... f6 {[%clk 0:00:05.7]} 30. Bf4 {[%clk 0:00:09.2]}
30... Kf7 {[%clk 0:00:05.1]} 31. Kb1 {[%clk 0:00:09.3]} 31... b5 {[%clk
0:00:05.2]} 32. Rd7+ {[%clk 0:00:09.2]} 32... Ke6 {[%clk 0:00:05.3]} 33. Rd6+
{[%clk 0:00:09.4]} 33... Kf5 {[%clk 0:00:05.8]} 34. Rxa6 {[%clk 0:00:09.8]}
34... g5 {[%clk 0:00:06.4]} 35. hxg5 {[%clk 0:00:10.2]} 35... fxg5 {[%clk
0:00:07.3]} 36. Bb8 {[%clk 0:00:10.7]} 36... Qe1+ {[%clk 0:00:04.7]} 37. Ka2
{[%clk 0:00:09.4]} 37... Qe8 {[%clk 0:00:05.6]} 38. Bd6 {[%clk 0:00:08.6]} 38...
Qc8 {[%clk 0:00:05.9]} 39. Rb6 {[%clk 0:00:08.2]} 39... Qc4+ {[%clk 0:00:05.1]}
40. Kb1 {[%clk 0:00:07.1]} 40... Qf1+ {[%clk 0:00:05.1]} 41. Ka2 {[%clk
0:00:06.9]} 41... Qc4+ {[%clk 0:00:05.5]} 42. Kb1 {[%clk 0:00:07.1]} 42... Kg4
{[%clk 0:00:06.1]} 43. Bb8 {[%clk 0:00:06.8]} 43... Qf1+ {[%clk 0:00:06.1]} 44.
Ka2 {[%clk 0:00:06.8]} 44... Qc4+ {[%clk 0:00:06.8]} 45. Kb1 {[%clk 0:00:07.2]}
45... Qc5 {[%clk 0:00:07.5]} 46. Ba7 {[%clk 0:00:01.7]} 46... Kxg3 {[%clk
0:00:05]} 0-1

[Event "*** Titled Tuesday Blitz"]
[Site "Chess.com"]
[Date "2021.02.02"]
[Round "1"]
[White "Srisshhhtea"]
[Black "SantoBlue"]
[Result "0-1"]
[WhiteElo "2421"]
[BlackElo "2824"]
[TimeControl "180+1"]
[EndTime "10:07:54 PST"]
[Termination "SantoBlue won by resignation"]

1. d4 {[%clk 0:03:00.3]} 1... Nf6 {[%clk 0:02:59.9]} 2. c4 {[%clk 0:03:00.4]}
2... g6 {[%clk 0:03:00]} 3. Nc3 {[%clk 0:03:00.1]} 3... Bg7 {[%clk 0:03:00.4]}
4. e4 {[%clk 0:02:59.7]} 4... O-O {[%clk 0:03:01.3]} 5. Bd3 {[%clk 0:02:59.5]}
5... d6 {[%clk 0:03:00.9]} 6. Nge2 {[%clk 0:03:00]} 6... Nbd7 {[%clk 0:02:56.8]}
7. O-O {[%clk 0:03:00.4]} 7... a6 {[%clk 0:02:56.6]} 8. Ng3 {[%clk 0:02:56.9]}
8... c5 {[%clk 0:02:56.3]} 9. d5 {[%clk 0:02:56.3]} 9... Rb8 {[%clk 0:02:51.5]}
10. a4 {[%clk 0:02:55.9]} 10... e6 {[%clk 0:02:47]} 11. dxe6 {[%clk 0:02:47.5]}
11... fxe6 {[%clk 0:02:46.6]} 12. Be2 {[%clk 0:02:47.6]} 12... Ne5 {[%clk
0:02:45.8]} 13. f4 {[%clk 0:02:45.6]} 13... Nc6 {[%clk 0:02:45.9]} 14. Be3
{[%clk 0:02:44.2]} 14... Qe7 {[%clk 0:02:42]} 15. Qd2 {[%clk 0:02:41.2]} 15...
Qc7 {[%clk 0:02:24.2]} 16. Rad1 {[%clk 0:02:37.7]} 16... Rd8 {[%clk 0:02:24.2]}
17. f5 {[%clk 0:02:32.1]} 17... gxf5 {[%clk 0:02:08]} 18. exf5 {[%clk 0:02:33]}
18... e5 {[%clk 0:02:08.6]} 19. Nh5 {[%clk 0:02:28.6]} 19... Nd4 {[%clk
0:02:04.9]} 20. Nxf6+ {[%clk 0:02:17.9]} 20... Bxf6 {[%clk 0:02:04.9]} 21. Nd5
{[%clk 0:02:17.3]} 21... Qg7 {[%clk 0:01:56.2]} 22. Nxf6+ {[%clk 0:01:47.8]}
22... Qxf6 {[%clk 0:01:57.1]} 23. Bg5 {[%clk 0:01:47.8]} 23... Nxe2+ {[%clk
0:01:52.3]} 24. Kh1 {[%clk 0:01:46.9]} 24... Qg7 {[%clk 0:01:44.9]} 25. Bxd8
{[%clk 0:01:42.1]} 25... Nf4 {[%clk 0:01:45.4]} 26. Rxf4 {[%clk 0:01:35.8]}
26... exf4 {[%clk 0:01:45]} 27. Qxd6 {[%clk 0:01:35.6]} 27... Ra8 {[%clk
0:01:26.6]} 28. Bf6 {[%clk 0:01:20.6]} 28... Qf7 {[%clk 0:01:14.9]} 29. Qd8+
{[%clk 0:01:03.2]} 29... Qf8 {[%clk 0:01:14.8]} 30. Qd5+ {[%clk 0:00:53.6]}
30... Qf7 {[%clk 0:01:14.2]} 31. Qe5 {[%clk 0:00:40.5]} 31... Bd7 {[%clk
0:01:12]} 32. Qxf4 {[%clk 0:00:32.4]} 32... Qxf6 {[%clk 0:01:00.1]} 33. Rxd7
{[%clk 0:00:32.3]} 33... Re8 {[%clk 0:01:01]} 34. h3 {[%clk 0:00:25.8]} 34...
Kh8 {[%clk 0:01:01.5]} 35. Rxb7 {[%clk 0:00:24.3]} 35... Qd4 {[%clk 0:00:43.3]}
36. Qxd4+ {[%clk 0:00:19.6]} 36... cxd4 {[%clk 0:00:44.2]} 37. Rd7 {[%clk
0:00:20]} 37... Rb8 {[%clk 0:00:44.8]} 38. Rxd4 {[%clk 0:00:18.9]} 38... Rxb2
{[%clk 0:00:45.5]} 39. f6 {[%clk 0:00:19.4]} 39... Kg8 {[%clk 0:00:45.7]} 40.
Rd6 {[%clk 0:00:19.1]} 40... a5 {[%clk 0:00:44.5]} 41. Ra6 {[%clk 0:00:16.9]}
41... Rc2 {[%clk 0:00:45.1]} 42. Rxa5 {[%clk 0:00:16.1]} 42... Rxc4 {[%clk
0:00:44.1]} 43. Ra6 {[%clk 0:00:15.9]} 43... Kf7 {[%clk 0:00:43.4]} 44. Kh2
{[%clk 0:00:16.3]} 44... h5 {[%clk 0:00:44]} 45. Kg3 {[%clk 0:00:14.6]} 45...
h4+ {[%clk 0:00:44.2]} 46. Kf3 {[%clk 0:00:14.5]} 46... Rb4 {[%clk 0:00:44.9]}
47. Kf2 {[%clk 0:00:14.3]} 47... Rc4 {[%clk 0:00:45.3]} 48. Kf3 {[%clk
0:00:12.6]} 48... Rb4 {[%clk 0:00:45.9]} 49. g3 {[%clk 0:00:12.6]} 49... Rb3+
{[%clk 0:00:45.9]} 50. Kf4 {[%clk 0:00:13]} 50... hxg3 {[%clk 0:00:46.2]} 51.
Kf5 {[%clk 0:00:12.7]} 51... Rf3+ {[%clk 0:00:41.3]} 52. Kg4 {[%clk 0:00:11.9]}
52... g2 {[%clk 0:00:40.5]} 53. Kxf3 {[%clk 0:00:09.1]} 53... g1=Q {[%clk
0:00:41.4]} 54. h4 {[%clk 0:00:06]} 54... Qf1+ {[%clk 0:00:41.3]} 55. Kg3 {[%clk
0:00:06.6]} 55... Qxa6 {[%clk 0:00:42.2]} 0-1

[Event "*** Titled Tuesday Blitz"]
[Site "Chess.com"]
[Date "2021.02.02"]
[Round "1"]
[White "TeukkaSalama"]
[Black "Mr_Sinigami"]
[Result "0-1"]
[WhiteElo "2340"]
[BlackElo "2640"]
[TimeControl "180+1"]
[EndTime "10:07:57 PST"]
[Termination "Mr_Sinigami won on time"]

1. d4 {[%clk 0:03:00.9]} 1... Nf6 {[%clk 0:02:59.6]} 2. Bf4 {[%clk 0:03:01.4]}
2... g6 {[%clk 0:02:59.7]} 3. e3 {[%clk 0:03:01.8]} 3... Bg7 {[%clk 0:03:00]} 4.
Nf3 {[%clk 0:03:02.5]} 4... O-O {[%clk 0:03:00.2]} 5. Be2 {[%clk 0:03:02.7]}
5... d6 {[%clk 0:03:00.6]} 6. h3 {[%clk 0:03:03.4]} 6... Nfd7 {[%clk 0:03:01]}
7. O-O {[%clk 0:03:03.5]} 7... e5 {[%clk 0:03:01.4]} 8. Bh2 {[%clk 0:03:03.1]}
8... Nc6 {[%clk 0:03:00.7]} 9. Nc3 {[%clk 0:03:02.9]} 9... f5 {[%clk 0:03:00.4]}
10. a4 {[%clk 0:03:00]} 10... f4 {[%clk 0:03:00]} 11. a5 {[%clk 0:02:46.8]}
11... a6 {[%clk 0:02:57.7]} 12. Nd5 {[%clk 0:02:34.7]} 12... g5 {[%clk 0:02:54]}
13. Bc4 {[%clk 0:02:28]} 13... Kh8 {[%clk 0:02:53.7]} 14. Nxc7 {[%clk
0:02:12.8]} 14... Qxc7 {[%clk 0:02:26.1]} 15. Nxg5 {[%clk 0:02:12.4]} 15... Nd8
{[%clk 0:02:17]} 16. Bb3 {[%clk 0:01:20.3]} 16... h6 {[%clk 0:02:04]} 17. exf4
{[%clk 0:00:49.9]} 17... exd4 {[%clk 0:01:52.3]} 18. Re1 {[%clk 0:00:48.1]}
18... Nf6 {[%clk 0:01:51.6]} 19. Qd3 {[%clk 0:00:37.1]} 19... hxg5 {[%clk
0:01:44.1]} 20. fxg5 {[%clk 0:00:37.4]} 20... Nh7 {[%clk 0:01:42.9]} 21. Qg6
{[%clk 0:00:24]} 21... Bf5 {[%clk 0:01:26.4]} 22. Qh5 {[%clk 0:00:23.8]} 22...
Nc6 {[%clk 0:01:25.1]} 23. g6 {[%clk 0:00:21.6]} 23... Bxg6 {[%clk 0:01:24.9]}
24. Qxg6 {[%clk 0:00:22.5]} 24... Ne5 {[%clk 0:01:23.5]} 25. Qh5 {[%clk
0:00:21.6]} 25... Qd7 {[%clk 0:01:10]} 26. Re4 {[%clk 0:00:20.8]} 26... Rf5
{[%clk 0:01:08.3]} 27. Qe2 {[%clk 0:00:17.2]} 27... Qb5 {[%clk 0:00:58.1]} 28.
Qd2 {[%clk 0:00:11.3]} 28... Ng6 {[%clk 0:00:50.3]} 29. Rae1 {[%clk 0:00:10.3]}
29... Nf6 {[%clk 0:00:29.9]} 30. Re6 {[%clk 0:00:09.1]} 30... Kh7 {[%clk
0:00:18.9]} 31. Bxd6 {[%clk 0:00:09.1]} 31... Bh6 {[%clk 0:00:18.4]} 32. Qd1
{[%clk 0:00:08.3]} 32... Rg8 {[%clk 0:00:17.7]} 33. Be7 {[%clk 0:00:08.7]} 33...
Ne8 {[%clk 0:00:13]} 34. Qg4 {[%clk 0:00:08.3]} 34... Ng7 {[%clk 0:00:11.6]} 35.
Rxg6 {[%clk 0:00:07.2]} 35... Rh5 {[%clk 0:00:09.9]} 36. Rxh6+ {[%clk
0:00:04.6]} 36... Rxh6 {[%clk 0:00:09.5]} 37. Re6 {[%clk 0:00:04.3]} 37... Qh5
{[%clk 0:00:08]} 38. Qe4+ {[%clk 0:00:04.1]} 38... Kh8 {[%clk 0:00:07.8]} 39.
Rxh6+ {[%clk 0:00:04.4]} 39... Qxh6 {[%clk 0:00:07.8]} 40. Bc4 {[%clk
0:00:03.9]} 40... Re8 {[%clk 0:00:07.4]} 41. Bd3 {[%clk 0:00:04.2]} 41... Qh5
{[%clk 0:00:06.9]} 42. Qxd4 {[%clk 0:00:02.7]} 42... Rxe7 {[%clk 0:00:06.3]} 43.
Qd8+ {[%clk 0:00:03.1]} 43... Re8 {[%clk 0:00:06.6]} 44. Qd4 {[%clk 0:00:03.7]}
44... Qh6 {[%clk 0:00:06.5]} 45. Qe4 {[%clk 0:00:03.5]} 45... Rxe4 {[%clk
0:00:05.9]} 46. Bxe4 {[%clk 0:00:04.4]} 46... Qc1+ {[%clk 0:00:06.1]} 0-1

[Event "*** Titled Tuesday Blitz"]
[Site "Chess.com"]
[Date "2021.02.02"]
[Round "1"]
[White "MaxLeto"]
[Black "FGHSMN"]
[Result "0-1"]
[WhiteElo "2331"]
[BlackElo "2630"]
[TimeControl "180+1"]
[EndTime "10:08:00 PST"]
[Termination "FGHSMN won by resignation"]

1. g4 {[%clk 0:02:57.6]} 1... d5 {[%clk 0:02:54.8]} 2. Bg2 {[%clk 0:02:57.6]}
2... Bxg4 {[%clk 0:02:54.1]} 3. c4 {[%clk 0:02:57.1]} 3... c6 {[%clk 0:02:53.7]}
4. Qb3 {[%clk 0:02:50.8]} 4... Qb6 {[%clk 0:02:27.2]} 5. cxd5 {[%clk 0:02:47.2]}
5... Qxb3 {[%clk 0:02:23]} 6. axb3 {[%clk 0:02:46.9]} 6... cxd5 {[%clk
0:02:22.9]} 7. Bxd5 {[%clk 0:02:47.8]} 7... Nc6 {[%clk 0:02:23.3]} 8. Nc3 {[%clk
0:02:12.6]} 8... Nf6 {[%clk 0:02:20.3]} 9. Bg2 {[%clk 0:01:43.4]} 9... e5 {[%clk
0:02:10.7]} 10. Nf3 {[%clk 0:01:36.7]} 10... Be7 {[%clk 0:01:55.2]} 11. d3
{[%clk 0:01:31.3]} 11... O-O {[%clk 0:01:53.4]} 12. O-O {[%clk 0:01:19.6]} 12...
Be6 {[%clk 0:01:47.9]} 13. Nd2 {[%clk 0:00:59.8]} 13... a6 {[%clk 0:01:34.7]}
14. Nc4 {[%clk 0:00:56.6]} 14... Rac8 {[%clk 0:01:29]} 15. Be3 {[%clk
0:00:41.3]} 15... Ng4 {[%clk 0:00:53.3]} 16. Bb6 {[%clk 0:00:27.8]} 16... Nd4
{[%clk 0:00:46.6]} 17. Bxb7 {[%clk 0:00:23.1]} 17... Rb8 {[%clk 0:00:42.7]} 18.
Na5 {[%clk 0:00:03]} 18... Nxb3 {[%clk 0:00:37.3]} 19. Nxb3 {[%clk 0:00:02.1]}
19... Bxb3 {[%clk 0:00:35.6]} 20. Bd5 {[%clk 0:00:02.1]} 20... Rxb6 {[%clk
0:00:34.6]} 21. Bxb3 {[%clk 0:00:02.2]} 21... Rxb3 {[%clk 0:00:35.5]} 22. Rxa6
{[%clk 0:00:02.9]} 22... Rxb2 {[%clk 0:00:33.9]} 23. Nd5 {[%clk 0:00:03.4]}
23... Bc5 {[%clk 0:00:33.3]} 24. e3 {[%clk 0:00:03.5]} 24... h6 {[%clk
0:00:31.7]} 25. Rc6 {[%clk 0:00:03.9]} 25... Bb4 {[%clk 0:00:20.6]} 26. h3
{[%clk 0:00:04.2]} 26... Nf6 {[%clk 0:00:19.9]} 27. Nxf6+ {[%clk 0:00:04.8]}
27... gxf6 {[%clk 0:00:20.8]} 28. Rxf6 {[%clk 0:00:05.6]} 28... Kg7 {[%clk
0:00:21.3]} 29. Rb6 {[%clk 0:00:05.8]} 29... Bc3 {[%clk 0:00:20.5]} 30. Rc6
{[%clk 0:00:05.7]} 30... Bd2 {[%clk 0:00:20.4]} 31. Ra1 {[%clk 0:00:05.3]} 31...
f6 {[%clk 0:00:20.4]} 32. Ra7+ {[%clk 0:00:05.4]} 32... Rf7 {[%clk 0:00:21]} 33.
Ra8 {[%clk 0:00:04.8]} 33... Kg6 {[%clk 0:00:21.4]} 34. Rcc8 {[%clk 0:00:04.6]}
34... Rg7 {[%clk 0:00:21.6]} 35. Kf1 {[%clk 0:00:04]} 35... Kf5 {[%clk
0:00:21.3]} 36. Rc4 {[%clk 0:00:03.2]} 36... Bb4 {[%clk 0:00:20.5]} 37. Rg4
{[%clk 0:00:02.2]} 37... Rxg4 {[%clk 0:00:19.3]} 38. hxg4+ {[%clk 0:00:03.1]}
38... Kxg4 {[%clk 0:00:19.4]} 39. Rh8 {[%clk 0:00:04]} 39... Kf3 {[%clk
0:00:19]} 40. Kg1 {[%clk 0:00:03.6]} 40... Rxf2 {[%clk 0:00:18.4]} 41. Rxh6
{[%clk 0:00:03.3]} 41... Kxe3 {[%clk 0:00:18.9]} 42. Rh3+ {[%clk 0:00:02.7]}
42... Rf3 {[%clk 0:00:18.3]} 43. Rh5 {[%clk 0:00:01.6]} 43... Bc5 {[%clk
0:00:17.8]} 44. Kg2 {[%clk 0:00:02.5]} 44... Rf2+ {[%clk 0:00:17.3]} 45. Kg3
{[%clk 0:00:02.6]} 45... Kxd3 {[%clk 0:00:18]} 46. Rh8 {[%clk 0:00:02.5]} 46...
Ke3 {[%clk 0:00:18.2]} 47. Rd8 {[%clk 0:00:03.1]} 47... f5 {[%clk 0:00:18.3]}
48. Rc8 {[%clk 0:00:03.1]} 48... f4+ {[%clk 0:00:19.2]} 49. Kg4 {[%clk
0:00:03.1]} 49... Bd4 {[%clk 0:00:20.1]} 50. Kf5 {[%clk 0:00:03.6]} 50... f3
{[%clk 0:00:20.5]} 51. Rc1 {[%clk 0:00:03.5]} 51... Rh2 {[%clk 0:00:20.9]} 52.
Re1+ {[%clk 0:00:03.2]} 52... Kd2 {[%clk 0:00:21.6]} 53. Rf1 {[%clk 0:00:03.6]}
53... f2 {[%clk 0:00:22.3]} 54. Kg4 {[%clk 0:00:04.4]} 54... Ke2 {[%clk
0:00:22.5]} 55. Rh1 {[%clk 0:00:03.1]} 55... Rxh1 {[%clk 0:00:21.6]} 56. Kg3
{[%clk 0:00:04]} 56... f1=Q {[%clk 0:00:21.7]} 0-1

[Event "*** Titled Tuesday Blitz"]
[Site "Chess.com"]
[Date "2021.02.02"]
[Round "1"]
[White "LucaBrasi1968"]
[Black "bylavochka"]
[Result "1-0"]
[WhiteElo "2501"]
[BlackElo "2085"]
[TimeControl "180+1"]
[EndTime "10:08:00 PST"]
[Termination "LucaBrasi1968 won by resignation"]

1. e4 {[%clk 0:02:58]} 1... c5 {[%clk 0:02:59.8]} 2. c3 {[%clk 0:02:57.5]} 2...
Nf6 {[%clk 0:02:56.3]} 3. e5 {[%clk 0:02:57.4]} 3... Nd5 {[%clk 0:02:56.3]} 4.
d4 {[%clk 0:02:58.3]} 4... cxd4 {[%clk 0:02:54.4]} 5. Qxd4 {[%clk 0:02:51.2]}
5... e6 {[%clk 0:02:39.1]} 6. Nf3 {[%clk 0:02:49.4]} 6... Nc6 {[%clk 0:02:38.8]}
7. Qe4 {[%clk 0:02:49.2]} 7... d6 {[%clk 0:02:25.2]} 8. g3 {[%clk 0:02:47.9]}
8... dxe5 {[%clk 0:02:22.7]} 9. Nxe5 {[%clk 0:02:46.8]} 9... Nxe5 {[%clk
0:02:22.7]} 10. Qxe5 {[%clk 0:02:45.5]} 10... Qf6 {[%clk 0:02:19.1]} 11. Qxf6
{[%clk 0:02:44.5]} 11... Nxf6 {[%clk 0:02:18.1]} 12. Bg2 {[%clk 0:02:44.8]}
12... Bc5 {[%clk 0:02:16.5]} 13. O-O {[%clk 0:02:43.1]} 13... Rb8 {[%clk
0:02:14.1]} 14. Bf4 {[%clk 0:02:40.8]} 14... Ra8 {[%clk 0:02:12]} 15. Nd2 {[%clk
0:02:32.6]} 15... Ke7 {[%clk 0:02:02.9]} 16. Rad1 {[%clk 0:02:13.1]} 16... Nh5
{[%clk 0:02:00.5]} 17. Bg5+ {[%clk 0:02:05.4]} 17... f6 {[%clk 0:02:00.1]} 18.
Ne4 {[%clk 0:01:59.7]} 18... Bb6 {[%clk 0:01:13.6]} 19. Bc1 {[%clk 0:01:59.1]}
19... g5 {[%clk 0:00:58.3]} 20. b3 {[%clk 0:01:52.5]} 20... Rb8 {[%clk
0:00:48.9]} 21. Ba3+ {[%clk 0:01:51.3]} 21... Kf7 {[%clk 0:00:44.2]} 22. Bd6
{[%clk 0:01:45.9]} 22... Ra8 {[%clk 0:00:42.3]} 23. c4 {[%clk 0:01:45.8]} 23...
Bd7 {[%clk 0:00:28.3]} 24. c5 {[%clk 0:01:31.9]} 24... Bd8 {[%clk 0:00:25.4]}
25. b4 {[%clk 0:01:26.7]} 25... Bc6 {[%clk 0:00:25]} 26. Rfe1 {[%clk 0:01:26.1]}
26... Ng7 {[%clk 0:00:24]} 27. g4 {[%clk 0:01:10]} 27... h5 {[%clk 0:00:23.4]}
28. h3 {[%clk 0:01:09.9]} 28... hxg4 {[%clk 0:00:23.5]} 29. hxg4 {[%clk
0:01:10.1]} 29... Rh4 {[%clk 0:00:22.6]} 30. f3 {[%clk 0:01:05]} 30... f5 {[%clk
0:00:22.6]} 31. Nf2 {[%clk 0:00:58.6]} 31... fxg4 {[%clk 0:00:19.4]} 32. Nxg4
{[%clk 0:00:57.9]} 32... Bf6 {[%clk 0:00:16.1]} 33. Nxf6 {[%clk 0:00:45.4]}
33... Kxf6 {[%clk 0:00:17]} 34. Be5+ {[%clk 0:00:38.4]} 34... Kf7 {[%clk
0:00:17.1]} 35. Bg3 {[%clk 0:00:36.3]} 35... Rh6 {[%clk 0:00:15.6]} 36. f4
{[%clk 0:00:34.6]} 36... Nf5 {[%clk 0:00:12.8]} 37. Bxc6 {[%clk 0:00:26]} 37...
bxc6 {[%clk 0:00:12]} 38. fxg5 {[%clk 0:00:26.3]} 38... Rg6 {[%clk 0:00:12.2]}
39. Bf4 {[%clk 0:00:24.3]} 39... Ne7 {[%clk 0:00:09.1]} 40. Rd7 {[%clk
0:00:22.8]} 40... a5 {[%clk 0:00:04]} 41. Bd6 {[%clk 0:00:17.4]} 41... Rxg5+
{[%clk 0:00:03.2]} 42. Kf2 {[%clk 0:00:17.2]} 42... Re8 {[%clk 0:00:02.6]} 43.
Ke3 {[%clk 0:00:13.5]} 43... Kf6 {[%clk 0:00:01.7]} 44. Bxe7+ {[%clk 0:00:09.8]}
44... Rxe7 {[%clk 0:00:02.6]} 45. Rf1+ {[%clk 0:00:09.5]} 45... Rf5 {[%clk
0:00:02.4]} 46. Rxf5+ {[%clk 0:00:09.2]} 46... exf5+ {[%clk 0:00:03.1]} 47. Rxe7
{[%clk 0:00:09.4]} 47... Kxe7 {[%clk 0:00:04]} 48. bxa5 {[%clk 0:00:09.4]} 48...
Kd7 {[%clk 0:00:04.1]} 49. Kf4 {[%clk 0:00:09.7]} 49... Kc7 {[%clk 0:00:04.5]}
50. Kxf5 {[%clk 0:00:10.3]} 50... Kb7 {[%clk 0:00:05.4]} 51. Ke6 {[%clk
0:00:10.9]} 51... Ka6 {[%clk 0:00:06.3]} 52. Kd6 {[%clk 0:00:11.4]} 52... Kb5
{[%clk 0:00:06.2]} 53. a6 {[%clk 0:00:07]} 53... Kxa6 {[%clk 0:00:07.1]} 54.
Kxc6 {[%clk 0:00:07.2]} 1-0

[Event "*** Titled Tuesday Blitz"]
[Site "Chess.com"]
[Date "2021.02.02"]
[Round "1"]
[White "Artyom_ChessMate"]
[Black "Grineva_Marianna"]
[Result "1-0"]
[WhiteElo "2562"]
[BlackElo "2249"]
[TimeControl "180+1"]
[EndTime "10:08:01 PST"]
[Termination "Artyom_ChessMate won on time"]

1. e4 {[%clk 0:03:00.5]} 1... c5 {[%clk 0:02:59.5]} 2. Nc3 {[%clk 0:03:00.3]}
2... Nc6 {[%clk 0:02:54]} 3. Bb5 {[%clk 0:02:59.6]} 3... Nd4 {[%clk 0:02:52.5]}
4. Nf3 {[%clk 0:02:58.4]} 4... Nxb5 {[%clk 0:02:49]} 5. Nxb5 {[%clk 0:02:59.3]}
5... a6 {[%clk 0:02:44.4]} 6. Nc3 {[%clk 0:02:59.3]} 6... d6 {[%clk 0:02:42.6]}
7. d4 {[%clk 0:02:58.7]} 7... cxd4 {[%clk 0:02:41.7]} 8. Qxd4 {[%clk 0:02:59.6]}
8... Bd7 {[%clk 0:02:35.6]} 9. Bg5 {[%clk 0:02:56.1]} 9... Qa5 {[%clk
0:02:20.7]} 10. O-O {[%clk 0:02:53.4]} 10... Nf6 {[%clk 0:02:19.3]} 11. Bxf6
{[%clk 0:02:53.1]} 11... gxf6 {[%clk 0:02:20.2]} 12. Nd5 {[%clk 0:02:49.3]}
12... Rc8 {[%clk 0:02:15.8]} 13. b4 {[%clk 0:02:43.3]} 13... Qb5 {[%clk
0:02:04.9]} 14. Nd2 {[%clk 0:02:29.1]} 14... Bh6 {[%clk 0:01:48.3]} 15. c4
{[%clk 0:02:27.3]} 15... Qc6 {[%clk 0:01:46.6]} 16. Nxf6+ {[%clk 0:02:17.1]}
16... exf6 {[%clk 0:01:40.6]} 17. Qxf6 {[%clk 0:02:18]} 17... Bxd2 {[%clk
0:01:37.8]} 18. Qxh8+ {[%clk 0:02:17.5]} 18... Ke7 {[%clk 0:01:38.1]} 19. Qxh7
{[%clk 0:02:14.9]} 19... Qxc4 {[%clk 0:01:28.2]} 20. Rad1 {[%clk 0:02:12.8]}
20... Qxb4 {[%clk 0:01:17]} 21. Qh4+ {[%clk 0:02:09.4]} 21... Ke8 {[%clk
0:01:15]} 22. a3 {[%clk 0:02:08.7]} 22... Qc3 {[%clk 0:01:12.6]} 23. Qh7 {[%clk
0:01:48]} 23... Be6 {[%clk 0:01:09.3]} 24. f4 {[%clk 0:01:10]} 24... Bc4 {[%clk
0:00:52.7]} 25. Rf3 {[%clk 0:01:09.9]} 25... Qd4+ {[%clk 0:00:37.1]} 26. Kh1
{[%clk 0:01:09.9]} 26... Be2 {[%clk 0:00:37.2]} 27. Qg8+ {[%clk 0:01:00.2]}
27... Kd7 {[%clk 0:00:23.8]} 28. Qxf7+ {[%clk 0:00:58.9]} 28... Kc6 {[%clk
0:00:24.4]} 29. Qd5+ {[%clk 0:00:34.6]} 29... Qxd5 {[%clk 0:00:20.6]} 30. exd5+
{[%clk 0:00:35.5]} 30... Kd7 {[%clk 0:00:21.2]} 31. Rff1 {[%clk 0:00:28.5]}
31... Bxf1 {[%clk 0:00:20.4]} 32. Rxd2 {[%clk 0:00:27.4]} 32... Rc1 {[%clk
0:00:19.6]} 33. Kg1 {[%clk 0:00:27.7]} 33... Bc4+ {[%clk 0:00:16.8]} 34. Kf2
{[%clk 0:00:28.1]} 34... Rc3 {[%clk 0:00:16.4]} 35. a4 {[%clk 0:00:26.9]} 35...
Ra3 {[%clk 0:00:15.7]} 36. g4 {[%clk 0:00:27.4]} 36... Rxa4 {[%clk 0:00:15.6]}
37. g5 {[%clk 0:00:27.8]} 37... Ra1 {[%clk 0:00:13.9]} 38. Kg2 {[%clk 0:00:24]}
38... Bf1+ {[%clk 0:00:11.6]} 39. Kg3 {[%clk 0:00:23.7]} 39... Ra3+ {[%clk
0:00:11.2]} 40. Kg4 {[%clk 0:00:22.6]} 40... Bh3+ {[%clk 0:00:11.8]} 41. Kh5
{[%clk 0:00:23]} 41... Bf5 {[%clk 0:00:11]} 42. Kh6 {[%clk 0:00:23.4]} 42...
Rh3+ {[%clk 0:00:10.4]} 43. Kg7 {[%clk 0:00:23.8]} 43... Ke7 {[%clk 0:00:10.2]}
44. g6 {[%clk 0:00:23.2]} 44... Rh4 {[%clk 0:00:08.7]} 45. Re2+ {[%clk
0:00:23.5]} 45... Kd7 {[%clk 0:00:09]} 46. Kf6 {[%clk 0:00:23.5]} 46... Bxg6
{[%clk 0:00:07.8]} 47. Kg5 {[%clk 0:00:20.1]} 47... Rh3 {[%clk 0:00:06]} 48.
Kxg6 {[%clk 0:00:20.3]} 48... b5 {[%clk 0:00:05.9]} 49. f5 {[%clk 0:00:20.7]}
49... b4 {[%clk 0:00:05.8]} 50. f6 {[%clk 0:00:21.2]} 50... Rf3 {[%clk
0:00:04.4]} 51. f7 {[%clk 0:00:20.8]} 51... a5 {[%clk 0:00:04.6]} 52. Kg7 {[%clk
0:00:21.3]} 52... a4 {[%clk 0:00:04.5]} 53. Re4 {[%clk 0:00:16.8]} 53... b3
{[%clk 0:00:01.7]} 54. Rxa4 {[%clk 0:00:16.8]} 1-0